bitfinex/quotes_SOLUSD_20220227
["timestamp","ask_amount","ask_price","bid_price","bid_amount"]
[1645927219963,1.74913762,86.536,86.402,111.95]
[1645927220164,1.74913762,86.536,86.404,55.99494591]
[1645927220465,114.2,86.538,86.404,55.99494591]
[1645927220768,1.69822196,86.529,86.404,55.99494591]
[1645927220964,4.626,86.528,86.404,55.99494591]
[1645927221165,13.78,86.53,86.405,2.98136748]
[1645927221567,4.626,86.536,86.421,61.4465228]
[1645927221781,283.65735097,86.539,86.423,2.63411135]
[1645927221994,283.65735097,86.539,86.424,4.875]
[1645927222383,283.65735097,86.539,86.424,6.975]
[1645927222785,283.65735097,86.539,86.441,114.2]
[1645927222985,283.65735097,86.539,86.451,114.2]
[1645927223186,283.65735097,86.539,86.452,4.624]
[1645927223388,115.88005264,86.538,86.443,2.88753395]
[1645927223585,115.60225418,86.529,86.443,2.88753395]
[1645927223784,1.46760514,86.528,86.443,2.88753395]
[1645927223986,114.2,86.527,86.354,4.625]
[1645927224185,1.78001339,86.526,86.344,2.1]
[1645927224384,4.877,86.525,86.344,2.1]
[1645927224587,114.2,86.519,86.36,17.3602]
[1645927224785,17.3591,86.52,86.36,17.3602]
[1645927224786,13.78,86.51,86.363,114.2]
[1645927224987,13.78,86.51,86.364,7.31055098]
[1645927225188,13.78,86.51,86.366,2.41493952]
[1645927225386,4.627,86.509,86.366,2.41493952]
[1645927225788,114.2,86.509,86.367,4.627]
[1645927226095,13.78,86.51,86.371,114.2]
[1645927226292,13.78,86.51,86.373,114.2]
[1645927226487,378.29975189,86.474,86.374,2.88078978]
[1645927226687,378.29975189,86.474,86.375,166.98220016]
[1645927226890,378.29975189,86.474,86.376,2.5224135]
[1645927227090,378.29975189,86.474,86.377,4.878]
[1645927227292,378.29975189,86.474,86.377,2.378]
[1645927227495,378.29975189,86.474,86.391,114.2]
[1645927227691,378.29975189,86.474,86.393,114.2]
[1645927227891,378.29975189,86.474,86.395,114.2]
[1645927228092,0.00117745,86.474,86.401,114.2]
[1645927228295,0.00117745,86.474,86.403,114.2]
[1645927228493,17.3548,86.55,86.405,114.2]
[1645927228794,4.627,86.569,86.422,2.3447812]
[1645927228996,4.624,86.574,86.423,116.67474378]
[1645927229192,60.84542241,86.545,86.431,117.13116515]
[1645927229393,60.14790795,86.532,86.433,114.2]
[1645927229693,60.14790795,86.532,86.43,17.3473]
[1645927229892,60.14790795,86.532,86.431,2.4912236]
[1645927230095,60.14790795,86.532,86.424,2.68142886]
[1645927230299,4.875,86.531,86.423,42.79274324]
[1645927230494,6.61239233,86.531,86.423,42.79274324]
[1645927230695,1.98739233,86.531,86.424,117.16887304]
[1645927230894,1.73739233,86.531,86.425,2.27477608]
[1645927231495,1.35207352,86.559,86.427,68.51]
[1645927231797,1.37789956,86.584,86.462,3.04018741]
[1645927231996,1.54217078,86.56,86.433,114.2]
[1645927232197,1.54217078,86.56,86.434,2.44180371]
[1645927232396,42.85244414,86.559,86.434,2.44180371]
[1645927232603,42.85244414,86.559,86.443,114.2]
[1645927232808,1.42192219,86.558,86.442,42.93452455]
[1645927233198,0.25,86.557,86.442,42.93452455]
[1645927233497,0.25,86.557,86.45,57.8076]
[1645927233699,1.58454602,86.588,86.451,2.61581836]
[1645927233900,4.624,86.593,86.451,116.81581836]
[1645927234197,249.80247215,86.593,86.452,2.58989932]
[1645927234397,1.5087523,86.592,86.453,4.623]
[1645927234599,58.40663614,86.591,86.453,4.623]
[1645927234798,1.76634769,86.59,86.454,0.25]
[1645927234999,1.76634769,86.59,86.457,114.2]
[1645927235198,0.25,86.589,86.458,3.07096668]
[1645927235599,0.25,86.589,86.491,164.39877627]
[1645927235799,1.58454602,86.61,86.491,161.34162478]
[1645927235999,1.94255292,86.625,86.492,2.64100482]
[1645927236199,1.58454602,86.629,86.493,4.621]
[1645927236403,1.58454602,86.629,86.497,114.2]
[1645927236599,1.58454602,86.633,86.498,2.94171676]
[1645927236801,1.6467872,86.627,86.499,4.62]
[1645927237099,1.58454602,86.624,86.499,4.62]
[1645927237301,1.58454602,86.624,86.492,2.93969559]
[1645927237501,4.62,86.626,86.492,2.93969559]
[1645927237502,1.58454602,86.626,86.492,2.80007131]
[1645927237700,1.6467872,86.627,86.493,7.29628836]
[1645927237904,1.6467872,86.627,86.531,52.190638]
[1645927238201,1.6467872,86.627,86.531,52.30190106]
[1645927238400,1.6467872,86.627,86.531,49.28476595]
[1645927238801,115.8467872,86.627,86.531,49.28476595]
[1645927239009,3.45296178,86.625,86.531,49.28476595]
[1645927239204,1.86841576,86.625,86.531,49.28476595]
[1645927239604,1.36841576,86.625,86.531,49.28476595]
[1645927240206,1.36841576,86.625,86.532,2.91976015]
[1645927240506,333.13183988,86.631,86.532,2.91976015]
[1645927240906,1.58454602,86.653,86.552,114.2]
[1645927241108,1.58454602,86.671,86.531,49.28476595]
[1645927241306,57.8129952,86.652,86.554,44.28653701]
[1645927241509,57.8129952,86.652,86.555,2.45043589]
[1645927241712,1.59483772,86.651,86.554,44.28653701]
[1645927242008,1.5685103,86.648,86.493,2.29182475]
[1645927242207,1.5685103,86.648,86.492,4.62]
[1645927242208,0.25,86.647,86.492,4.62]
[1645927242506,4.62,86.646,86.492,4.62]
[1645927242706,30.50951152,86.646,86.492,4.62]
[1645927242907,4.20112618,86.645,86.492,4.62]
[1645927243107,17.3375,86.64,86.51,17.3351]
[1645927243309,61.74782027,86.639,86.511,48.8690594]
[1645927243508,1.6745088,86.638,86.512,2.764927]
[1645927243710,4.62,86.637,86.512,2.764927]
[1645927244113,1.77630782,86.636,86.512,2.764927]
[1645927244308,114.2,86.629,86.511,45.88032658]
[1645927244509,17.3374,86.63,86.492,4.62]
[1645927244510,114.2,86.627,86.492,4.62]
[1645927244709,1.58454602,86.612,86.492,4.62]
[1645927244908,114.2,86.599,86.428,2.54151546]
[1645927245108,13.78,86.59,86.428,2.54151546]
[1645927245309,1.81128238,86.589,86.428,116.74151546]
[1645927245508,17.3477,86.58,86.43,114.2]
[1645927245809,1.39392665,86.579,86.431,2.78406712]
[1645927246718,1.67433609,86.579,86.451,56.20266382]
[1645927246911,1.67433609,86.579,86.452,2.58818696]
[1645927247714,59.20160963,86.588,86.472,167.96520429]
[1645927247916,59.20160963,86.588,86.473,0.25]
[1645927248114,59.20160963,86.588,86.473,2.47615575]
[1645927248314,1.57384794,86.611,86.473,2.47615575]
[1645927248520,1.58454602,86.621,86.482,114.2]
[1645927248713,1.58454602,86.63,86.492,114.2]
[1645927248915,1.58454602,86.632,86.493,2.97504468]
[1645927249114,1.58454602,86.633,86.53,17.3324]
[1645927249318,51.13233584,86.632,86.531,52.09278788]
[1645927249514,1.71556224,86.631,86.532,3.06481464]
[1645927249714,0.25,86.63,86.532,3.06481464]
[1645927250017,0.25,86.63,86.531,49.56737664]
[1645927250214,44.93344408,86.619,86.531,49.56737664]
[1645927250614,1.57346715,86.618,86.531,49.56737664]
[1645927251316,17.3419,86.61,86.531,49.56737664]
[1645927251818,17.3419,86.61,86.532,2.52724849]
[1645927252015,17.3419,86.61,86.531,49.56737664]
[1645927252418,1.56106654,86.609,86.531,49.56737664]
[1645927252715,31.1219,86.61,86.531,49.56737664]
[1645927253115,1.62219058,86.609,86.531,49.56737664]
[1645927253318,17.3419,86.61,86.531,49.56737664]
[1645927254117,1.63199686,86.609,86.531,49.56737664]
[1645927254319,13.78,86.6,86.461,2.30488589]
[1645927254519,13.78,86.6,86.454,48.4689]
[1645927254520,17.3469,86.59,86.455,3.02289511]
[1645927254715,4.623,86.589,86.455,3.02289511]
[1645927254916,6.36778945,86.589,86.455,3.02289511]
[1645927255316,1.47011642,86.587,86.458,2.89311411]
[1645927255518,4.123,86.586,86.491,52.04389321]
[1645927255717,49.93747071,86.588,86.492,114.2]
[1645927255922,49.93747071,86.588,86.493,2.54559759]
[1645927256320,6.0493888,86.609,86.493,2.54559759]
[1645927256524,1.4273888,86.609,86.493,2.54559759]
[1645927257121,1.58454602,86.611,86.496,114.2]
[1645927257421,17.3394,86.59,86.493,2.54559759]
[1645927258222,0.25,86.589,86.493,2.54559759]
[1645927258521,0.25,86.589,86.5,17.3387]
[1645927258723,0.25,86.589,86.501,2.54494885]
[1645927259727,0.25,86.589,86.501,116.74494885]
[1645927259926,0.25,86.589,86.501,114.2]
[1645927260129,0.25,86.589,86.502,2.26066306]
[1645927262436,17.3409,86.58,86.5,17.3387]
[1645927262637,42.8615872,86.579,86.492,2.40015685]
[1645927262842,42.8615872,86.579,86.492,116.60015685]
[1645927263057,42.8615872,86.579,86.492,2.40015685]
[1645927263255,42.8615872,86.579,86.491,52.04389321]
[1645927263452,1.65421179,86.578,86.491,52.04389321]
[1645927263653,17.2431,86.57,86.491,52.04389321]
[1645927264352,1.44338307,86.569,86.491,52.04389321]
[1645927264753,1.58454602,86.577,86.491,52.04389321]
[1645927264953,17.3469,86.56,86.491,52.04389321]
[1645927265152,52.70976658,86.559,86.491,52.04389321]
[1645927265552,52.70976658,86.559,86.471,2.52228165]
[1645927265753,1.46739172,86.558,86.452,2.40411735]
[1645927265954,1.46739172,86.558,86.437,2.65394256]
[1645927266153,4.624,86.557,86.437,2.65394256]
[1645927266557,1.46739172,86.558,86.439,114.2]
[1645927266755,1.46739172,86.558,86.44,2.54131342]
[1645927267156,52.70976658,86.559,86.44,2.54131342]
[1645927267357,52.70976658,86.559,86.47,17.3475]
[1645927267553,52.70976658,86.559,86.451,160.92679147]
[1645927267754,52.70976658,86.559,86.452,3.02053004]
[1645927267955,1.58454602,86.577,86.459,114.2]
[1645927268154,1.68026654,86.609,86.451,44.27203459]
[1645927268155,1.58454602,86.602,86.471,114.2]
[1645927268354,1.58454602,86.599,86.472,3.26347209]
[1645927268555,1.58454602,86.601,86.52,16.8374]
[1645927268754,1.58454602,86.598,86.456,114.2]
[1645927268954,1.58454602,86.595,86.457,2.76501468]
[1645927269155,1.55160112,86.589,86.458,0.25]
[1645927269359,0.25,86.588,86.458,0.25]
[1645927269658,49.26068613,86.579,86.481,59.431244]
[1645927269858,47.40539214,86.579,86.482,114.2]
[1645927270058,47.40539214,86.579,86.483,2.43804334]
[1645927271457,47.40539214,86.579,86.51,17.34]
[1645927271657,0.25,86.578,86.511,51.14099922]
[1645927271855,1.58454602,86.595,86.511,51.14099922]
[1645927272061,236.2402588,86.6,86.513,2.84850841]
[1645927272262,236.2402588,86.6,86.512,114.2]
[1645927272263,1.58454602,86.618,86.518,114.2]
[1645927272458,1.58454602,86.627,86.522,114.2]
[1645927272757,51.98177354,86.627,86.523,2.63772809]
[1645927272959,51.98177354,86.627,86.561,51.27446608]
[1645927273158,1.40520848,86.626,86.511,2.94679085]
[1645927273457,1.40520848,86.626,86.502,2.5199465]
[1645927273458,1.58454602,86.616,86.502,2.5199465]
[1645927273657,1.58454602,86.614,86.502,2.5199465]
[1645927274057,59.0563822,86.613,86.504,114.2]
[1645927274258,1.80990804,86.612,86.505,2.61037942]
[1645927274461,115.95599225,86.609,86.505,2.61037942]
[1645927274660,1.58454602,86.596,86.482,4.621]
[1645927274861,1.58454602,86.576,86.482,4.621]
[1645927275258,1.58454602,86.571,86.482,4.621]
[1645927275460,17.3484,86.57,86.482,4.621]
[1645927275657,44.18675274,86.569,86.484,2.3576949]
[1645927275957,44.18675274,86.569,86.484,2.28914245]
[1645927276157,349.87311269,86.567,86.483,49.55978849]
[1645927276358,1.80901872,86.566,86.482,4.621]
[1645927276559,17.3455,86.56,86.482,4.621]
[1645927276761,1.79393216,86.559,86.482,4.621]
[1645927277970,1.79393216,86.559,86.451,2.94963336]
[1645927278365,1.79393216,86.559,86.431,2.37865092]
[1645927278565,17.3455,86.56,86.431,2.37865092]
[1645927278764,17.3455,86.56,86.46,17.349]
[1645927278965,17.3455,86.56,86.461,60.13196981]
[1645927279165,17.3455,86.56,86.461,62.48155903]
[1645927279367,17.3455,86.56,86.462,116.48163755]
[1645927279566,17.3455,86.56,86.463,2.95615208]
[1645927281867,17.5955,86.56,86.49,17.3417]
[1645927282069,17.5955,86.56,86.491,49.69127513]
[1645927282268,17.5955,86.56,86.492,2.98533889]
[1645927282870,17.5955,86.56,86.492,117.18533889]
[1645927283070,0.25,86.56,86.5,17.3414]
[1645927283273,0.25,86.56,86.501,2.73733274]
[1645927283670,349.87311269,86.567,86.501,2.73733274]
[1645927283872,349.87311269,86.567,86.492,71.50161048]
[1645927284069,349.87311269,86.567,86.53,17.3341]
[1645927284270,349.87311269,86.567,86.531,2.77849822]
[1645927284472,1.58454602,86.594,86.531,2.29961768]
[1645927284669,17.3348,86.6,86.511,2.5938278]
[1645927284869,23.5972,86.602,86.511,2.5938278]
[1645927284870,48.89867341,86.599,86.512,57.93475963]
[1645927285071,48.89867341,86.599,86.513,2.98239698]
[1645927285271,48.89867341,86.599,86.513,117.18239698]
[1645927285469,48.89867341,86.599,86.514,2.60978008]
[1645927286475,48.89867341,86.599,86.54,17.3344]
[1645927286673,48.39867341,86.599,86.541,50.1002971]
[1645927287579,48.39867341,86.599,86.542,2.52899425]
[1645927287976,48.39867341,86.599,86.521,2.82655115]
[1645927288176,17.3365,86.59,86.502,2.99122079]
[1645927288977,17.3365,86.59,86.505,2.48070315]
[1645927289375,17.3365,86.59,86.52,17.3386]
[1645927289775,1.55992089,86.589,86.503,55.49384102]
[1645927289977,17.3414,86.58,86.503,55.49384102]
[1645927290179,46.00238787,86.579,86.503,55.49384102]
[1645927290377,46.00238787,86.579,86.504,2.53579356]
[1645927291080,17.3417,86.57,86.504,2.53579356]
[1645927292081,17.3417,86.57,86.51,17.3408]
[1645927292280,46.00238787,86.579,86.512,2.61836695]
[1645927292786,1.58454602,86.606,86.505,2.69798761]
[1645927292987,23.0033,86.636,86.505,2.69798761]
[1645927292988,1.58454602,86.615,86.505,2.69798761]
[1645927293283,1.58454602,86.616,86.511,114.2]
[1645927293482,1.4951432,86.634,86.512,2.38602239]
[1645927293483,1.58454602,86.617,86.512,2.38602239]
[1645927293681,60.52254493,86.617,86.512,2.38602239]
[1645927293882,62.10709095,86.617,86.512,2.38602239]
[1645927294084,60.52254493,86.617,86.512,2.38602239]
[1645927294382,17.332,86.61,86.551,52.54121571]
[1645927295287,17.332,86.61,86.551,52.04121571]
[1645927295484,17.582,86.61,86.55,17.3327]
[1645927295885,17.582,86.61,86.54,17.3346]
[1645927298786,17.582,86.61,86.55,17.3331]
[1645927298987,17.582,86.61,86.551,51.91973263]
[1645927299590,60.52254493,86.617,86.552,116.70660098]
[1645927299789,60.52254493,86.617,86.57,17.328]
[1645927299988,60.52254493,86.617,86.571,50.89599331]
[1645927300392,313.72115801,86.641,86.571,50.89599331]
[1645927300592,313.72115801,86.641,86.572,116.81895652]
[1645927300791,313.72115801,86.641,86.573,2.63051176]
[1645927301089,1.58454602,86.671,86.601,116.56864105]
[1645927301290,56.20972726,86.67,86.602,59.4076128]
[1645927301488,56.20972726,86.67,86.602,2.76854938]
[1645927301690,56.20972726,86.67,86.571,116.80844735]
[1645927301895,1.47006206,86.669,86.57,17.3285]
[1645927302192,6.50933037,86.668,86.521,3.04924976]
[1645927302391,1.58454602,86.648,86.522,46.88298996]
[1645927302590,3.32387832,86.648,86.523,2.52057902]
[1645927302790,17.3295,86.64,86.524,2.40201692]
[1645927302996,1.43588363,86.639,86.524,2.40201692]
[1645927303392,4.619,86.638,86.524,2.40201692]
[1645927303591,2.74678921,86.639,86.524,2.40201692]
[1645927303792,0.25,86.64,86.524,2.40201692]
[1645927304214,2.99678921,86.64,86.524,2.40201692]
[1645927304392,17.3342,86.63,86.56,17.3307]
[1645927304591,49.92494629,86.629,86.561,60.2653072]
[1645927305993,49.92494629,86.629,86.58,17.327]
[1645927306397,49.92494629,86.629,86.551,2.89580812]
[1645927307295,49.92494629,86.629,86.552,57.26486377]
[1645927307496,49.92494629,86.629,86.57,17.329]
[1645927307704,49.92494629,86.629,86.571,48.72861566]
[1645927308297,49.92494629,86.629,86.57,17.329]
[1645927308502,49.92494629,86.629,86.551,2.89580812]
[1645927308699,49.42494629,86.629,86.56,17.3308]
[1645927309301,49.42494629,86.629,86.561,43.32754444]
[1645927309702,49.42494629,86.629,86.57,17.3288]
[1645927310102,49.42494629,86.629,86.561,43.32754444]
[1645927310103,17.3277,86.64,86.562,114.2]
[1645927310303,1.58454602,86.647,86.562,114.2]
[1645927310504,1.58454602,86.66,86.563,2.78537035]
[1645927310704,1.58454602,86.662,86.563,2.78537035]
[1645927311105,51.04928387,86.653,86.563,2.78537035]
[1645927311505,51.04928387,86.653,86.59,17.3236]
[1645927311722,51.04928387,86.653,86.591,53.52070581]
[1645927311924,57.7536,86.67,86.591,53.52070581]
[1645927311925,190.83491999,86.654,86.593,2.69370506]
[1645927312124,1.58454602,86.674,86.594,114.2]
[1645927312325,4.617,86.75,86.593,2.69370506]
[1645927312326,1.58454602,86.692,86.593,2.69370506]
[1645927312523,1.58454602,86.685,86.593,2.69370506]
[1645927312726,1.58454602,86.688,86.593,2.69370506]
[1645927312927,47.63628481,86.687,86.6,17.3227]
[1645927313128,47.63628481,86.687,86.601,2.88974965]
[1645927313528,47.63628481,86.687,86.6,13.78]
[1645927313930,47.63628481,86.687,86.62,17.3149]
[1645927314128,47.63628481,86.687,86.621,50.12348113]
[1645927315528,47.63628481,86.687,86.63,17.3164]
[1645927315931,0.25,86.69,86.631,114.2]
[1645927316132,0.25,86.69,86.632,2.86819898]
[1645927316330,3.18428507,86.732,86.632,2.86819898]
[1645927316633,4.615,86.751,86.631,114.2]
[1645927316634,3.18428507,86.736,86.641,114.2]
[1645927316835,72.24861672,86.749,86.64,13.78]
[1645927316836,3.18428507,86.74,86.64,13.78]
[1645927317033,48.11118448,86.739,86.643,45.21286969]
[1645927317235,48.11118448,86.739,86.65,57.6895]
[1645927317636,49.71593084,86.739,86.661,60.49153423]
[1645927317836,48.11118448,86.739,86.661,60.49153423]
[1645927318036,48.11118448,86.739,86.662,114.2]
[1645927318440,48.11118448,86.739,86.663,2.62740292]
[1645927318935,48.11118448,86.739,86.681,47.5435225]
[1645927319135,48.11118448,86.739,86.65,13.78]
[1645927320136,48.11118448,86.739,86.651,54.46316126]
[1645927320336,1.85835772,86.738,86.651,54.46316126]
[1645927320535,1.85835772,86.738,86.65,13.78]
[1645927321536,1.85835772,86.738,86.66,17.3093]
[1645927321537,17.3085,86.73,86.66,17.3093]
[1645927321736,1.87219753,86.729,86.66,17.3093]
[1645927322136,48.11118448,86.739,86.651,48.11536946]
[1645927322340,1.47609277,86.738,86.651,48.11536946]
[1645927322738,4.21609277,86.738,86.651,48.11536946]
[1645927322942,47.08727725,86.739,86.651,48.11536946]
[1645927323143,47.08727725,86.739,86.652,2.40917312]
[1645927323539,57.50401819,86.719,86.652,2.40917312]
[1645927325240,17.3127,86.71,86.652,2.40917312]
[1645927325440,17.3127,86.71,86.631,2.9530152]
[1645927326140,17.3127,86.71,86.632,45.48943844]
[1645927326540,17.3127,86.71,86.633,2.74454171]
[1645927327341,20.05948921,86.71,86.633,2.74454171]
[1645927327542,20.05948921,86.71,86.621,2.90040998]
[1645927327744,20.05948921,86.71,86.601,2.69149186]
[1645927327943,1.62274559,86.709,86.601,2.69149186]
[1645927328143,17.3216,86.68,86.601,2.69149186]
[1645927328347,50.97860039,86.679,86.603,2.80467546]
[1645927328952,50.97860039,86.679,86.604,2.40082262]
[1645927329244,112.2,86.673,86.57,2.92761532]
[1645927329446,13.78,86.66,86.515,2.82273315]
[1645927329646,13.78,86.66,86.52,57.766]
[1645927329848,2.74,86.659,86.521,2.78331351]
[1645927330048,44.20917588,86.657,86.522,60.06181488]
[1645927330247,17.3302,86.65,86.523,70.80716718]
[1645927330468,17.3302,86.65,86.524,3.09950904]
[1645927330650,29.40116899,86.65,86.524,3.09950904]
[1645927330852,29.40116899,86.65,86.525,68.51]
[1645927331050,29.40116899,86.65,86.541,182.71]
[1645927331252,29.40116899,86.65,86.543,114.2]
[1645927331454,29.40116899,86.65,86.544,2.42058821]
[1645927332051,41.53117383,86.65,86.544,2.42058821]
[1645927332452,41.53117383,86.65,86.551,182.71]
[1645927332651,44.20917588,86.657,86.552,2.31260095]
[1645927332852,44.20917588,86.657,86.552,5.05939016]
[1645927333050,44.20917588,86.657,86.552,2.31260095]
[1645927333255,44.20917588,86.657,86.553,2.74678921]
[1645927333451,44.20917588,86.657,86.581,114.2]
[1645927333652,44.20917588,86.657,86.583,114.2]
[1645927333852,44.20917588,86.657,86.584,2.35905966]
[1645927336258,0.25,86.66,86.584,2.35905966]
[1645927336859,17.5733,86.66,86.584,2.35905966]
[1645927337259,44.92360424,86.659,86.584,2.35905966]
[1645927338477,44.92360424,86.659,86.541,114.2]
[1645927338478,17.3276,86.65,86.561,2.38126846]
[1645927338678,17.3276,86.65,86.549,2.74678921]
[1645927338880,17.3276,86.65,86.561,114.2]
[1645927339077,17.3276,86.65,86.561,2.9727174]
[1645927339281,17.3276,86.65,86.561,61.62328749]
[1645927339578,17.3276,86.65,86.563,2.80716491]
[1645927341679,17.3276,86.65,86.572,2.84719749]
[1645927341882,44.92360424,86.659,86.572,2.84719749]
[1645927342079,44.92360424,86.659,86.572,2.74678921]
[1645927343080,44.92360424,86.659,86.581,114.2]
[1645927343281,44.92360424,86.659,86.583,114.2]
[1645927343482,44.92360424,86.659,86.584,2.74259596]
[1645927345585,44.92360424,86.659,86.591,114.2]
[1645927345784,24.9244,86.678,86.592,2.62506275]
[1645927346284,24.9244,86.678,86.593,2.74678921]
[1645927346684,42.88127778,86.68,86.604,114.2]
[1645927346885,42.88127778,86.68,86.605,2.92529869]
[1645927347087,42.88127778,86.68,86.605,5.6720879]
[1645927347283,42.88127778,86.68,86.608,114.2]
[1645927347484,42.88127778,86.68,86.613,2.8470253]
[1645927348185,42.88127778,86.68,86.614,2.74678921]
[1645927348486,0.25,86.679,86.621,59.85328417]
[1645927348685,0.25,86.679,86.621,62.31681656]
[1645927348886,0.25,86.679,86.622,2.9052814]
[1645927349086,0.25,86.679,86.623,2.50343135]
[1645927349885,17.0652,86.7,86.623,2.50343135]
[1645927350088,52.61036886,86.699,86.623,2.50343135]
[1645927350586,17.3175,86.69,86.623,2.50343135]
[1645927350998,17.3175,86.69,86.575,3.06330326]
[1645927350999,36.9475,86.69,86.575,3.06330326]
[1645927351187,3.18428507,86.685,86.558,2.81067905]
[1645927351387,3.18428507,86.68,86.558,2.81067905]
[1645927351588,4.616,86.684,86.517,47.5798]
[1645927351589,13.78,86.67,86.529,68.51]
[1645927351787,13.78,86.67,86.59,53.28128397]
[1645927351989,11.12575471,86.669,86.591,2.42141492]
[1645927352190,13.78,86.67,86.591,2.42141492]
[1645927353288,67.56273658,86.65,86.591,2.42141492]
[1645927354190,50.23373658,86.65,86.591,2.42141492]
[1645927354490,50.23373658,86.65,86.551,2.6099058]
[1645927354491,2.74,86.649,86.551,2.6099058]
[1645927354792,2.74,86.649,86.533,2.65871368]
[1645927354989,64.01373658,86.65,86.533,2.65871368]
[1645927355389,66.76052579,86.65,86.581,2.52998571]
[1645927356590,17.3325,86.64,86.581,2.52998571]
[1645927356992,17.3325,86.64,86.551,2.87009154]
[1645927357797,17.3325,86.64,86.58,2.67328688]
[1645927361699,17.3244,86.65,86.581,2.38071278]
[1645927361897,2.74,86.672,86.581,2.38071278]
[1645927362098,3.18428507,86.673,86.581,2.38071278]
[1645927362300,6.50803634,86.679,86.6,17.3217]
[1645927362498,49.99182752,86.678,86.601,59.02551793]
[1645927362701,49.99182752,86.678,86.602,2.44618228]
[1645927363499,17.3199,86.67,86.61,17.3199]
[1645927363699,17.3199,86.67,86.611,2.6407423]
[1645927366702,16.3199,86.67,86.611,2.6407423]
[1645927369605,16.3199,86.67,86.602,114.2]
[1645927369606,16.3199,86.67,86.62,17.319]
[1645927369805,16.3199,86.67,86.621,2.94016528]
[1645927370605,16.3199,86.67,86.62,17.319]
[1645927370606,44.07325115,86.676,86.623,3.05016124]
[1645927370907,17.3178,86.68,86.623,3.05016124]
[1645927372005,59.57586048,86.679,86.623,3.05016124]
[1645927372807,17.3197,86.67,86.623,3.05016124]
[1645927373607,17.3197,86.67,86.625,2.53721422]
[1645927376208,17.3197,86.67,86.58,57.7387]
[1645927376411,17.3197,86.67,86.581,2.33166391]
[1645927376910,17.3197,86.67,86.582,2.89488358]
[1645927377109,4.73907088,86.713,86.601,114.2]
[1645927377110,3.18428507,86.69,86.601,114.2]
[1645927377311,57.7291,86.7,86.602,2.84239614]
[1645927378009,50.71076581,86.699,86.605,2.93004386]
[1645927378409,17.3163,86.69,86.631,58.53234354]
[1645927378609,17.3163,86.69,86.632,2.97127792]
[1645927379231,17.3163,86.69,86.632,117.17127792]
[1645927379414,17.3136,86.7,86.64,17.3153]
[1645927379614,17.3136,86.7,86.641,3.09594141]
[1645927380015,17.3136,86.7,86.632,114.2]
[1645927380016,17.3136,86.7,86.633,2.9112343]
[1645927380217,49.16095891,86.699,86.633,2.9112343]
[1645927380415,49.16095891,86.699,86.65,17.3122]
[1645927380617,49.16095891,86.699,86.651,55.9027567]
[1645927380819,49.16095891,86.699,86.652,2.29110686]
[1645927382116,17.3153,86.69,86.652,2.29110686]
[1645927382517,17.3153,86.69,86.653,57.97894702]
[1645927382721,49.16095891,86.699,86.654,2.71109671]
[1645927384422,17.3154,86.69,86.654,2.71109671]
[1645927384624,17.3154,86.69,86.643,2.86354781]
[1645927385428,49.16095891,86.699,86.643,117.06354781]
[1645927385623,49.16095891,86.699,86.644,2.63240105]
[1645927386627,49.16095891,86.699,86.651,2.69262689]
[1645927387040,49.16095891,86.699,86.643,2.6515578]
[1645927387438,17.312,86.71,86.643,2.6515578]
[1645927387839,17.3102,86.72,86.661,3.08144665]
[1645927388240,17.3102,86.72,86.651,2.4424944]
[1645927388444,60.33674885,86.725,86.663,2.91344239]
[1645927388642,60.33674885,86.725,86.664,3.04381789]
[1645927389443,60.33674885,86.725,86.67,17.3102]
[1645927389641,60.33674885,86.725,86.671,117.14782391]
[1645927389844,60.33674885,86.725,86.672,2.37562204]
[1645927390643,60.33674885,86.725,86.672,116.57562204]
[1645927390843,17.306,86.74,86.681,2.9957567]
[1645927391046,3.18428507,86.757,86.681,2.9957567]
[1645927391243,17.3047,86.75,86.673,2.69665876]
[1645927391645,3.18428507,86.757,86.673,2.69665876]
[1645927391845,53.78256878,86.76,86.691,167.40075562]
[1645927392046,53.78256878,86.76,86.691,164.46166954]
[1645927392244,53.78256878,86.76,86.692,2.72899709]
[1645927392443,53.78256878,86.76,86.692,5.4757863]
[1645927392646,53.78256878,86.76,86.693,2.74678921]
[1645927393446,53.78256878,86.76,86.71,17.299]
[1645927393647,17.2995,86.78,86.711,2.98541528]
[1645927394045,17.2995,86.78,86.702,2.42408588]
[1645927394445,17.2995,86.78,86.703,2.74678921]
[1645927394645,52.0930398,86.779,86.703,2.74678921]